Cogmind - Beta 10.2 @@@ ROGUE MODE // 2021.05.12 @ 23:45:52 Player: Raibnyu Result: Destroyed by G-67 Veteran with Electrolaser Performance ------------- Evolutions (6) 3000 Regions Visited (14) 2800 Robots Destroyed (166) 830 Value Destroyed (7266) 7266 Prototype IDs (10) 200 Alien Tech Used (0) 0 Bonus (1617) 1617 TOTAL SCORE: 15713 Bonus ------- Pacifist 270 High Alert Combat Kills 399 Follower Combat Kills 386 Entered Garrisons 200 Used RIF Installer 500 Aligned with FarCom 300 Friendly Fire -438 Cogmind --------- Core Integrity 0/1150 Matter 115/300 Energy 169/170 System Corruption 29% Temperature Cool (69) Movement Rolling (110) Ox1 Location -4/Extension Parts ------- > --- POWER (2) -------- Micro Fission Core > --- PROPULSION (6) --- Compact Wheel > --- UTILITY (9) ------ Improved Heat Sink Large Storage Unit Terrain Scan Processor Improved Target Analyzer Improved Hacking Suite Experimental Hacking Suite > --- WEAPON (2) ------- (None) > --- INVENTORY (10) --- Neutrino Core Micro Fission Core Flexi-carbon Leg Advanced Heat Sink Improved Coolant Injector Terrain Scanner Relay Coupler [Duelist] (28) Hardcell Cannon Improved Remote Datajack Force Lance Peak State ------------ > --- POWER ------------ Micro Fission Core Heavy Antimatter Reactor > --- PROPULSION ------- Improved Medium Treads Myomer Leg Antigrav System Antigrav System Antigrav System Antigrav System > --- UTILITY ---------- Advanced Cooling System High-capacity Storage Unit High-capacity Storage Unit Advanced Terrain Scan Processor Improved Target Analyzer Transmission Jammer Layered Medium Armor Plating Layered Medium Armor Plating Improved Hacking Suite > --- WEAPON ----------- CL-ANK's Mallet > --- INVENTORY -------- Light Antimatter Reactor Light Antimatter Reactor Antigrav System Fusion Compressor Improved Heat Sink Advanced Heat Sink Improved Phase Shifter Improved Medium Armor Plating Layered Medium Armor Plating Shock Absorption System Point Defense Array Relay Coupler [Duelist] Relay Coupler [Sentry] Tesla Rifle Tesla Rifle Heavy Neutron Cannon High-powered Shotgun Improved Remote Datajack [Rating: 114] Favorites ----------- Power Micro Fission Core Engine Light Angular Momentum Engine Power Core Micro Fission Core Reactor Light Antimatter Reactor Propulsion Light Treads Treads Light Treads Leg Myomer Leg Wheel Wheel Hover Unit Antigrav System Utility High-capacity Storage Unit Device Transmission Jammer Storage High-capacity Storage Unit Processor Improved Target Analyzer Hackware Improved Hacking Suite Protection Improved Medium Armor Plating Weapon Advanced Assault Cannon Energy Gun Tesla Rifle Energy Cannon Heavy Neutron Cannon Ballistic Gun AWS/Gauss Ballistic Cannon Advanced Assault Cannon Launcher Grenade Launcher Special Weapon Remote Datajack Impact Weapon CL-ANK's Mallet Slashing Weapon Chainsword Piercing Weapon Force Lance Build | -11 -10 -10 -10 -9 -8 -8 -8 -7 -6 -5 -5 -5 -4 -4 ------- Run | Scr Mat Min Exi Min Mat Gar Mat Fac Fac Fac Upp Upp Fac Ext Slots Evolved 12 | . . . . . 4 . . 2 2 2 . . 2 . Power 1 | . . . . . . . . . . . . . 1 . Propulsion 4 | . . . . . 2 . . . . 2 . . . . Utility 7 | . . . . . 2 . . 2 2 . . . 1 . Weapon . | . . . . . . . . . . . . . . . Parts Attached 262 | 6 2 . 8 1 9 10 3 25 36 9 25 5 101 22 Power 20 | 1 . . . . 1 . . 2 2 . 3 1 9 1 Engine 5 | 1 . . . . . . . 1 1 . 1 . 1 . Core 11 | . . . . . 1 . . 1 1 . 2 1 4 1 Reactor 4 | . . . . . . . . . . . . . 4 . Propulsion 56 | 2 . . 2 . 3 1 . 3 6 4 4 . 21 10 Treads 17 | . . . 2 . 1 1 . 3 2 . 1 . 5 2 Leg 14 | 2 . . . . 1 . . . . . 1 . 9 1 Wheel 8 | . . . . . . . . . . . 2 . . 6 Hover 17 | . . . . . 1 . . . 4 4 . . 7 1 Flight . | . . . . . . . . . . . . . . . Utility 84 | 1 2 . 4 . 3 . . 7 17 3 8 2 30 7 Device 36 | . . . 1 . 2 . . 3 8 2 4 1 13 2 Storage 9 | 1 2 . 3 . . . . . . . 1 . 1 1 Processor 11 | . . . . . . . . 2 2 1 . . 4 2 Hackware 8 | . . . . . . . . . 3 . 1 . 3 1 Protection 20 | . . . . . 1 . . 2 4 . 2 1 9 1 Artifact . | . . . . . . . . . . . . . . . Weapon 102 | 2 . . 2 1 2 9 3 13 11 2 10 2 41 4 Energy Gun 19 | 1 . . . . . 2 . 1 . . 2 2 11 . Energy Cannon 8 | . . . 1 . . . . . . 1 2 . 4 . Ballistic Gun 15 | 1 . . 1 1 . . . . 3 . 5 . 4 . Ballistic Cannon 24 | . . . . . 2 1 2 6 2 . . . 9 2 Launcher 10 | . . . . . . 3 . . . 1 . . 5 1 Special Weapon 8 | . . . . . . . . 3 1 . 1 . 3 . Impact Weapon 4 | . . . . . . . . . . . . . 4 . Slashing Weapon 13 | . . . . . . 3 1 3 5 . . . 1 . Piercing Weapon 1 | . . . . . . . . . . . . . . 1 Special Melee Weapon . | . . . . . . . . . . . . . . . Unidentified Prototypes 9 | . . . 3 . . . . 1 1 . . . 4 . Parts Lost 94 | . . . . . . 1 . 1 5 15 12 11 30 19 Power 9 | . . . . . . . . . . 1 1 2 4 1 Propulsion 39 | . . . . . . 1 . 1 4 7 4 1 11 10 Utility 26 | . . . . . . . . . . 4 4 4 10 4 Weapon 20 | . . . . . . . . . 1 3 3 4 5 4 Highest Loss Streak 12 | . . . . . . 1 . 1 4 12 5 11 6 11 Average Slot Usage (%) 89 | . 96 100 93 79 78 97 100 99 99 97 70 51 81 78 Engine 3 | . 14 14 14 14 6 . . 2 4 4 1 2 1 . Core 3 | . . . . . 2 9 9 4 1 . 3 1 3 7 Treads 17 | . . . 27 28 22 32 36 29 21 . . . 5 9 Leg 2 | . 28 28 . . 4 . . . . . 2 . 6 . Hover 4 | . . . . . 8 1 . . 3 34 5 2 7 1 Device 8 | . . . . . . 9 9 14 12 13 3 2 9 5 Storage 14 | . 24 28 27 28 18 18 18 15 13 11 11 11 9 9 Processor 6 | . . . . . . . . 7 13 6 5 5 7 14 Hackware 4 | . . . . . . . . . 4 11 14 9 6 10 Protection 6 | . . . . . 6 9 9 7 8 1 8 4 8 . Energy Gun 1 | . 14 14 8 . . 1 . . . . . 6 2 . Ballistic Gun 2 | . 14 14 13 8 8 . . . 3 4 3 . . . Ballistic Cannon 4 | . . . . . . 13 15 8 5 . . . 1 8 Slashing Weapon 1 | . . . . . . 1 2 3 2 1 . . . . Naked Turns . | . . . . . . . . . . . . . . . Heaviest Build 131 | 10 38 38 77 77 94 94 94 97 98 91 93 91 131 82 Greatest Support 178 | 20 20 20 40 40 60 80 80 88 98 76 28 25 175 178 Greatest Overweight (x) 31 | 2 1 1 1 1 2 1 1 1 4 2 30 25 31 5 Average Overweight (x) 1 | . . 1 . 1 1 1 1 . . 1 6 8 1 . Largest Inventory Capacity 20 | 6 16 16 20 20 20 20 20 20 20 20 20 20 20 18 Average Capacity 19 | 5 11 16 15 20 20 20 20 20 20 20 20 20 18 17 Most Carried 20 | 5 8 9 14 20 20 20 20 20 20 20 19 15 20 18 Average Carried 16 | 2 5 8 10 16 19 19 19 19 19 18 15 12 15 12 Final Capacity 20 | 6 16 16 20 20 20 20 20 20 20 20 20 20 18 10 Final Carried 20 | 4 8 9 14 19 19 20 20 19 19 18 15 11 9 10 Class Distribution -------------------- 25% | Hauler-Mutant 20% | Scavenger-Mutant 14% | Bothacker-Mutant 13% | Bothacker-Assassin 8% | Bothacker-Skirmisher 7% | Mutant 3% | Scavenger-Skirmisher 3% | Hacker-Mutant 3% | Scavenger-Assassin Dominant Class ---------------- Mutant | -10/Materials Mutant | -10/Mines Mutant | -10/Exiles Hauler-Mutant | -9/Mines Hauler-Mutant | -8/Materials Hauler-Mutant | -8/Garrison Hauler-Mutant | -8/Materials Bothacker-Assassin | -7/Factory Bothacker-Assassin | -6/Factory Scavenger-Mutant | -5/Factory Bothacker-Mutant | -5/Upper Caves Hauler-Mutant | -5/Upper Caves Scavenger-Mutant | -4/Factory Scavenger-Skirmisher | -4/Extension Resources | -11 -10 -10 -10 -9 -8 -8 -8 -7 -6 -5 -5 -5 -4 -4 ----------- Run | Scr Mat Min Exi Min Mat Gar Mat Fac Fac Fac Upp Upp Fac Ext Matter Collected 5391 | 223 . 21 . 131 . 371 227 640 914 . 548 . 1414 902 Remotely . | . . . . . . . . . . . . . . . Salvage Created 6547 | . . . . . . 371 308 735 915 21 993 . 2041 1163 Parts 348 | . . . . . . 28 18 73 58 3 39 . 89 40 Haulers Intercepted 1 | . . . . . . . . . . . . . . 1 Recyclers Shooed 6 | . . . . . . . 1 . 3 . . . 2 . Parts Field Recycled . | . . . . . . . . . . . . . . . Retrieved Matter . | . . . . . . . . . . . . . . . Parts Self-Destructed 39 | . . . . . . . . . . . 38 1 . . Prevented . | . . . . . . . . . . . . . . . Kills | -11 -10 -10 -10 -9 -8 -8 -8 -7 -6 -5 -5 -5 -4 -4 ------- Run | Scr Mat Min Exi Min Mat Gar Mat Fac Fac Fac Upp Upp Fac Ext Combat Hostiles Destroyed 119 | . . . . . . 14 6 10 19 2 24 . 35 9 Melee 8 | . . . . . . . . 2 . . . . 6 . Guns 40 | . . . . . . 4 . . 6 . 21 . 9 . Cannons 56 | . . . . . . 9 6 8 13 . 3 . 8 9 AOE 13 | . . . . . . 1 . . . 2 . . 10 . Classes Destroyed 17 | . . . . . . 4 6 4 . . . . 1 2 Worker 11 | . . . . . . . . 4 3 . . . 1 3 Builder 12 | . . . . . . . 1 4 4 . . . 2 1 Tunneler 2 | . . . . . . . . 1 . . . . . 1 Hauler 1 | . . . . . . . . . . . . . . 1 Recycler 10 | . . . . . . . 1 2 . . . . 3 4 Mechanic 1 | . . . . . . . . 1 . . . . . . Operator 5 | . . . . . . . 1 1 2 . . . 1 . Watcher 3 | . . . . . . . 1 1 . . . . 1 . Swarmer 29 | . . . . . . 7 . . 5 2 14 . 1 . Grunt 26 | . . . . . . . 3 2 7 . 5 . 5 4 Brawler 3 | . . . . . . 1 . . . . . . 2 . Duelist 3 | . . . . . . 1 . . . . 2 . . . Protector 1 | . . . . . . . . . . . . . 1 . Sentry 17 | . . . . . . 5 2 2 2 . 1 . 1 4 Hunter 11 | . . . . . . . 1 1 1 . . . 8 . Programmer 30 | . . . . . . . . 5 5 . 2 . 18 . Behemoth 1 | . . . . . . . . . . . . . . 1 Best Kill Streak 7 | . . . . . . 3 3 5 4 2 7 . 4 4 Combat Bots Only 7 | . . . . . . 3 3 1 4 2 7 . 3 2 Max Kills in Single Turn 3 | . . . . . . 2 1 1 1 2 1 . 3 2 Gunslinging . | . . . . . . . . . . . . . . . Exploded 3 | . . . . . . 1 . . . 2 . . 3 . Melee 1 | . . . . . . . . 1 . . . . 1 . Uniques/NPCs Destroyed . | . . . . . . . . . . . . . . . Combat | -11 -10 -10 -10 -9 -8 -8 -8 -7 -6 -5 -5 -5 -4 -4 -------- Run | Scr Mat Min Exi Min Mat Gar Mat Fac Fac Fac Upp Upp Fac Ext Damage Taken 16806 | . . . . 49 . 465 304 615 1681 1456 1528 1197 6905 2606 Core 2441 | . . . . . . 36 53 50 202 233 210 500 719 438 Absorbed by Shields 229 | . . . . . . . . . . . . . . 229 Reduced by Siege Mode 263 | . . . . . . . . . . . . . 239 24 Core Remaining (%) 76 | 100 . . . 100 . . 83 92 76 . . 5 . . Volleys Fired 371 | . 5 . . . . 30 23 61 55 11 11 3 129 43 Largest 2 | . 2 . . . . 2 2 2 2 2 2 2 2 2 Hottest 175 | . 60 . . . . 98 96 96 96 113 150 150 175 126 Shots Fired 696 | . 10 . . . . 58 46 78 106 15 92 6 199 86 Gun 221 | . 10 . . . . 12 . . 41 10 84 6 58 . Cannon 416 | . . . . . . 41 46 45 63 4 6 . 127 84 Launcher 17 | . . . . . . 5 . . . 1 . . 9 2 Special 42 | . . . . . . . . 33 2 . 2 . 5 . Kinetic 503 | . 5 . . . . 41 46 45 104 10 82 . 86 84 Thermal 71 | . . . . . . . . . . 4 5 6 56 . Explosive 16 | . . . . . . 5 . . . . . . 9 2 Electromagnetic 64 | . 5 . . . . 12 . . . 1 3 . 43 . Robot Hit Streak 26 | . 2 . . . . 13 14 15 13 . 12 15 26 14 Robot Miss Streak 7 | . 6 . . . . 7 1 6 3 2 4 . 6 4 Penetration Max . | . . . . . . . . . . . . . . . Secondary Targets . | . . . . . . . . . . . . . . . Autonomous 89 | . . . . . . . . . 3 . 76 . 10 . Shots Hit Robots 489 | . 2 . . . . 30 27 82 89 . 68 6 123 62 Core Hits 254 | . 1 . . . . 24 13 26 45 2 36 1 68 38 Critical Hits 44 | . . . . . . 1 1 1 4 . 2 . 20 15 Critical Kills 18 | . . . . . . . 1 1 3 . 1 . 9 3 Critical Parts Destroyed 23 | . . . . . . 1 . . 1 . 1 . 10 10 Melee Attacks 128 | . . . . . . 8 10 35 27 2 . . 37 9 Kinetic 27 | . . . . . . . . . . . . . 27 . Impact . | . . . . . . . . . . . . . . . Slashing 92 | . . . . . . 8 10 35 27 2 . . 10 . Piercing 9 | . . . . . . . . . . . . . . 9 Sneak Attacks 33 | . . . . . . . . 14 12 . . . 1 6 Combat Hostiles . | . . . . . . . . . . . . . . . Follow-up Attacks . | . . . . . . . . . . . . . . . Damage Inflicted 20610 | . 29 . . . . 756 722 2734 3521 123 2157 129 6832 3607 Guns 4385 | . 29 . . . . 110 . . 771 . 1997 129 1349 . Cannons 7785 | . . . . . . 586 722 865 1230 . 160 . 1974 2248 Explosions 2868 | . . . . . . 60 . . . 123 . . 2185 500 Melee 5486 | . . . . . . . . 1869 1520 . . . 1282 815 Ramming 86 | . . . . . . . . . . . . . 42 44 Kinetic 11531 | . 14 . . . . 586 722 865 2001 . 1955 . 3140 2248 Thermal 1871 | . . . . . . . . . . 123 148 129 1276 195 Explosive 1839 | . . . . . . 60 . . . . . . 1474 305 Electromagnetic 1033 | . 15 . . . . 110 . . . . 54 . 854 . Impact . | . . . . . . . . . . . . . . . Slashing 3435 | . . . . . . . . 1869 1520 . . . 46 . Piercing 815 | . . . . . . . . . . . . . . 815 Highest Corruption 29 | . . . . . . . . 8 3 7 8 8 27 29 Average Corruption 10 | . . . . . . . . 4 2 6 7 8 11 27 Corruption Purged 8 | . . . . . . . . . . 1 . . 7 . Effects 439 | . . . . . . . . 43 34 12 51 2 167 130 Message Errors 91 | . . . . . . . . 14 7 . 11 . 39 20 Matter Fused 62 | . . . . . . . . 11 3 4 11 2 19 12 Heat Flow Errors 48 | . . . . . . . . 2 3 2 11 . 18 12 Energy Discharges 45 | . . . . . . . . 3 8 3 6 . 15 10 Parts Rejected 3 | . . . . . . . . . . . . . 2 1 Data Loss (minor) 42 | . . . . . . . . 9 7 . 8 . 8 10 Data Loss (major) 11 | . . . . . . . . 1 . . 2 . 5 3 Misfires 12 | . . . . . . . . 1 . 2 1 . 3 5 Alerts 2 | . . . . . . . . . . . . . 1 1 Misdirections 38 | . . . . . . . . . . . . . 11 27 Targeting Errors 70 | . . . . . . . . 1 6 1 . . 37 25 Weapon Failures 15 | . . . . . . . . 1 . . 1 . 9 4 Overload Shots . | . . . . . . . . . . . . . . . Overflow Damage 1716 | . . . . . . 31 41 542 467 67 . . 232 336 Projectiles 288 | . . . . . . 31 41 40 . . . . 117 59 Explosions 180 | . . . . . . . . . . 67 . . 113 . Melee 1248 | . . . . . . . . 502 467 . . . 2 277 Knockbacks 62 | . . . . . . 2 10 5 16 . . . 11 18 Impact . | . . . . . . . . . . . . . . . Kinetic 55 | . . . . . . 2 7 5 14 . . . 11 16 Secondary 7 | . . . . . . . 3 . 2 . . . . 2 Self-Inflicted Damage 429 | . . . . . . 6 . . . 117 . . 231 75 Shots 7 | . . . . . . 1 . . . 2 . . 3 1 Rammed 18 | . . . . . . . . . . . . . 9 9 Targets Rammed 18 | . . . . . . . . . . . . . 9 9 Kicked . | . . . . . . . . . . . . . . . Crushed . | . . . . . . . . . . . . . . . Highest Temperature 609 | . 40 . . . . 234 288 187 234 256 278 156 609 314 Average Temperature 91 | . 16 . . . . 78 63 33 56 71 96 62 122 86 Received Heat Transfer 1967 | . . . . . . 144 90 30 336 72 225 270 390 410 Effects 28 | . . . . . . . . . . . 1 . 23 4 Shutdowns 8 | . . . . . . . . . . . . . 8 . Energy Bleed 5 | . . . . . . . . . . . 1 . 4 . Interference 10 | . . . . . . . . . . . . . 6 4 Short Circuit 1 | . . . . . . . . . . . . . 1 . Damage (major) 3 | . . . . . . . . . . . . . 3 . Damage (core) 1 | . . . . . . . . . . . . . 1 . Siege Activations 5 | . . . . . . . . . . . . . 3 2 Total Turns 99 | . . . . . . . . . . . . . 73 26 Longest Duration 32 | . . . . . . . . . . . . . 32 18 Robots Corrupted 1 | . . . . . . . . . . . . . 1 . Combat Hostiles 1 | . . . . . . . . . . . . . 1 . Parts Fried 3 | . . . . . . . . . . . . . 2 1 Impact Corruptions . | . . . . . . . . . . . . . . . Robots Melted . | . . . . . . . . . . . . . . . Combat Hostiles . | . . . . . . . . . . . . . . . Parts Melted 1 | . . . . . . . . . . . . . 1 . Heat Transferred 1482 | . . . . . . . . . . 150 185 222 875 50 Parts Sabotaged . | . . . . . . . . . . . . . . . Parts Stolen . | . . . . . . . . . . . . . . . Parts Stripped . | . . . . . . . . . . . . . . . Power Chain Reactions 3 | . . . . . . . . . . . . . 3 . Missiles Intercepted . | . . . . . . . . . . . . . . . Alert | -11 -10 -10 -10 -9 -8 -8 -8 -7 -6 -5 -5 -5 -4 -4 ------- Run | Scr Mat Min Exi Min Mat Gar Mat Fac Fac Fac Upp Upp Fac Ext Peak Influence 799 | . 44 . . 62 30 707 515 153 443 219 . . 799 412 Initial 375 | . . . . . 24 19 344 88 72 217 . . 85 375 Average 152 | . 23 . . 1 26 389 312 48 100 142 . . 217 227 Maximum Alert Level 3 | . . . . . . 3 2 . 2 1 . . 3 2 Low Security (%) 70 | 100 100 100 . 100 100 28 25 100 85 57 . . 59 42 Level 1 18 | . . . . . . 29 45 . 13 42 . . 18 54 Level 2 8 | . . . . . . 28 28 . 1 . . . 17 3 Level 3 1 | . . . . . . 13 . . . . . . 4 . Level 4 . | . . . . . . . . . . . . . . . Level 5 . | . . . . . . . . . . . . . . . High Security . | . . . . . . . . . . . . . . . Max Security . | . . . . . . . . . . . . . . . Squads Dispatched 35 | . 1 . . . . . 1 6 8 1 . . 16 2 Investigation 4 | . . . . . . . 1 . 2 . . . 1 . Extermination 19 | . . . . . . . . 5 4 . . . 10 . Reinforcement 10 | . 1 . . . . . . 1 1 1 . . 4 2 Assault 2 | . . . . . . . . . 1 . . . 1 . Garrison . | . . . . . . . . . . . . . . . Intercept . | . . . . . . . . . . . . . . . Construction Impeded 4 | . . . . . . . . . . . . . 2 2 Haulers Reinforced . | . . . . . . . . . . . . . . . Stealth | -11 -10 -10 -10 -9 -8 -8 -8 -7 -6 -5 -5 -5 -4 -4 --------- Run | Scr Mat Min Exi Min Mat Gar Mat Fac Fac Fac Upp Upp Fac Ext Distress Signals 3 | . . . . . . . 1 1 . . . . 1 . Communications Jammed 54 | . . . . . . . . . 1 . . . 53 . Distress Signals 54 | . . . . . . . . . 1 . . . 53 . Times Spotted 221 | . 4 . . . . 17 10 19 25 16 40 6 53 31 Peak Tracking Total 9 | . 1 . . . . 6 3 2 4 9 7 5 5 9 Tactical Retreats 18 | . . . . . . 2 1 1 . 1 6 1 3 3 Traps | -11 -10 -10 -10 -9 -8 -8 -8 -7 -6 -5 -5 -5 -4 -4 ------- Run | Scr Mat Min Exi Min Mat Gar Mat Fac Fac Fac Upp Upp Fac Ext Traps Triggered 21 | . . . . 2 . 7 . 4 2 . . . 2 4 Indirectly . | . . . . . . . . . . . . . . . Trap Hack Attempts . | . . . . . . . . . . . . . . . Triggered . | . . . . . . . . . . . . . . . Disarmed . | . . . . . . . . . . . . . . . Reprogrammed . | . . . . . . . . . . . . . . . Reused . | . . . . . . . . . . . . . . . Traps Extracted . | . . . . . . . . . . . . . . . Installed . | . . . . . . . . . . . . . . . Triggered 3 | . . . . . . . . . . . . . . 3 Machines | -11 -10 -10 -10 -9 -8 -8 -8 -7 -6 -5 -5 -5 -4 -4 ---------- Run | Scr Mat Min Exi Min Mat Gar Mat Fac Fac Fac Upp Upp Fac Ext Machines Disabled 29 | . . . . . . 3 . 2 6 1 3 . 11 3 Max in Single Turn 4 | . . . . . . 1 . 2 1 1 1 . 4 2 Garrison Access 4 | . . . . . . . 1 1 2 . . . . . Garrison Relay 2 | . . . . . . 2 . . . . . . . . Energy Cycler 1 | . . . . . . . . . . . . . . 1 Machines Sabotaged . | . . . . . . . . . . . . . . . Garrisons Compromised . | . . . . . . . . . . . . . . . Overloaded Fab Kills . | . . . . . . . . . . . . . . . Fab Network Shutdowns . | . . . . . . . . . . . . . . . Hacking | -11 -10 -10 -10 -9 -8 -8 -8 -7 -6 -5 -5 -5 -4 -4 --------- Run | Scr Mat Min Exi Min Mat Gar Mat Fac Fac Fac Upp Upp Fac Ext Machines Accessed 41 | . 2 . 1 2 3 . 4 7 11 3 1 . 2 5 Terminals 23 | . 2 . . 1 1 . 2 3 5 1 1 . 2 5 Fabricators 3 | . . . . . . . . . 2 1 . . . . Repair Stations 2 | . . . . . . . . 1 1 . . . . . Recycling Units 3 | . . . . . . . 1 1 . 1 . . . . Scanalyzers 3 | . . . . . 1 . . 1 1 . . . . . Garrison Access 5 | . . . . . 1 . 1 1 2 . . . . . Total Hacks 96 | . 4 . 1 3 7 . 8 14 28 10 4 . 4 13 Successful 57 | . 2 . 1 3 5 . 5 6 12 7 4 . 3 9 Failed 39 | . 2 . . . 2 . 3 8 16 3 . . 1 4 Catastrophic 5 | . . . . . . . 1 1 2 . . . 1 . Database Lockouts . | . . . . . . . . . . . . . . . Manual 1 | . . . 1 . . . . . . . . . . . Terminals 60 | . 4 . . 2 2 . 4 5 17 5 4 . 4 13 Fabricators 5 | . . . . . . . . . 3 2 . . . . Repair Stations 5 | . . . . . . . . 3 2 . . . . . Recycling Units 7 | . . . . . . . 2 2 . 3 . . . . Scanalyzers 9 | . . . . . 4 . . 2 3 . . . . . Garrison Access 8 | . . . . . 1 . 2 2 3 . . . . . Terminal Hacks 35 | . 2 . 1 3 . . 2 1 7 3 4 . 3 9 Record 16 | . . . 1 2 . . 1 . 6 . 4 . 1 1 Part Schematic 2 | . . . . . . . . . . 1 . . . 1 Robot Schematic 1 | . . . . . . . . . . . . . . 1 Robot Analysis 2 | . 1 . . . . . . . . . . . . 1 Open Door 4 | . . . . 1 . . . . . . . . 1 2 Branch Access Points 2 | . . . . . . . . . 1 . . . 1 . Recycling Unit Index 1 | . . . . . . . . . . . . . . 1 Garrison Index 1 | . . . . . . . . . . . . . . 1 Alert Level 2 | . . . . . . . . 1 . . . . . 1 Unreport Threat 1 | . 1 . . . . . . . . . . . . . Locate Traps 1 | . . . . . . . . . . 1 . . . . Dispatch Records 1 | . . . . . . . . . . 1 . . . . Reinforcement Status 1 | . . . . . . . 1 . . . . . . . Fabricator Hacks 2 | . . . . . . . . . 1 1 . . . . Network Status 1 | . . . . . . . . . . 1 . . . . Build 1 | . . . . . . . . . 1 . . . . . Repair Station Hacks 2 | . . . . . . . . 2 . . . . . . Scan Component 1 | . . . . . . . . 1 . . . . . . Repair 1 | . . . . . . . . 1 . . . . . . Recycling Unit Hacks 5 | . . . . . . . 1 1 . 3 . . . . Report Inventory 3 | . . . . . . . 1 1 . 1 . . . . Retrieve Matter 1 | . . . . . . . . . . 1 . . . . Retrieve Components 1 | . . . . . . . . . . 1 . . . . Scanalyzer 5 | . . . . . 4 . . . 1 . . . . . Insert Component 3 | . . . . . 2 . . . 1 . . . . . Analyze 2 | . . . . . 2 . . . . . . . . . Garrison Access Hacks 8 | . . . . . 1 . 2 2 3 . . . . . Unlock Access 1 | . . . . . 1 . . . . . . . . . Seal Access 3 | . . . . . . . 1 1 1 . . . . . Coupler Status 4 | . . . . . . . 1 1 2 . . . . . Unauthorized Hacks . | . . . . . . . . . . . . . . . Terminals . | . . . . . . . . . . . . . . . Fabricators . | . . . . . . . . . . . . . . . Repair Stations . | . . . . . . . . . . . . . . . Recycling Units . | . . . . . . . . . . . . . . . Scanalyzers . | . . . . . . . . . . . . . . . Garrison Access . | . . . . . . . . . . . . . . . Data Cores Recovered 1 | . . . . . . . 1 . . . . . . . Used . | . . . . . . . . . . . . . . . Hacking Detections 31 | . 2 . . . 2 . 3 5 10 3 1 . 1 4 Full Trace Events 4 | . . . . . . . 1 . 2 . . . 1 . Feedback Events . | . . . . . . . . . . . . . . . Feedback Blocked . | . . . . . . . . . . . . . . . Robot Schematics Acquired 1 | . . . . . . . . . . . . . . 1 Robots Built . | . . . . . . . . . . . . . . . Matter . | . . . . . . . . . . . . . . . Time . | . . . . . . . . . . . . . . . Total Robot Build Rating . | . . . . . . . . . . . . . . . Part Schematics Acquired 4 | . . . . . 2 . . . . 1 . . . 1 Parts Built 2 | . . . . . . . . . 2 . . . . . Matter 212 | . . . . . . . . . 212 . . . . . Time 106 | . . . . . . . . . 106 . . . . . Total Part Build Rating 12 | . . . . . . . . . 12 . . . . . Parts Repaired 1 | . . . . . . . . 1 . . . . . . Time 44 | . . . . . . . . 44 . . . . . . Parts Recycled . | . . . . . . . . . . . . . . . Recycled Matter . | . . . . . . . . . . . . . . . Retrieved Matter . | . . . . . . . . . . . . . . . Retrieved Components 1 | . . . . . . . . . . 1 . . . . Parts Scanalyzed 3 | . . . . . 2 . . . 1 . . . . . Part Schematics Acquired 2 | . . . . . 2 . . . . . . . . . Parts Damaged . | . . . . . . . . . . . . . . . Bothacking | -11 -10 -10 -10 -9 -8 -8 -8 -7 -6 -5 -5 -5 -4 -4 ------------ Run | Scr Mat Min Exi Min Mat Gar Mat Fac Fac Fac Upp Upp Fac Ext Used RIF Installer 1 | . . . . . . 1 . . . . . . . . Robots Hacked 18 | . . . . . . . . 12 1 . 1 . 4 . Non-combat 14 | . . . . . . . . 12 . . . . 2 . Combat 4 | . . . . . . . . . 1 . 1 . 2 . Robot Hacks Applied 31 | . . . . . . . . 24 1 . 2 . 4 . parse_system 2 | . . . . . . . . 2 . . . . . . no_distress 12 | . . . . . . . . 12 . . . . . . find_chute 1 | . . . . . . . . . . . . . 1 . ignore_repairs 5 | . . . . . . . . 4 . . . . 1 . ignore_parts 2 | . . . . . . . . 2 . . . . . . find_station 3 | . . . . . . . . 3 . . . . . . check_alert 1 | . . . . . . . . 1 . . . . . . streamctrl_high 4 | . . . . . . . . . 1 . 2 . 1 . formatsys_high 1 | . . . . . . . . . . . . . 1 . Relay Couplers Released 8 | . . . . . . 7 . . 1 . . . . . Machine Destruction 8 | . . . . . . 7 . . 1 . . . . . Attached 4 | . . . . . . . . . 1 . 1 . 2 . Robots Rewired . | . . . . . . . . . . . . . . . Allies Hacked . | . . . . . . . . . . . . . . . Hacks Repelled . | . . . . . . . . . . . . . . . Allies | -11 -10 -10 -10 -9 -8 -8 -8 -7 -6 -5 -5 -5 -4 -4 -------- Run | Scr Mat Min Exi Min Mat Gar Mat Fac Fac Fac Upp Upp Fac Ext Total Allies 11 | . . . . 3 . . . . 1 . 1 1 2 3 Largest Group 3 | . . . . 3 2 2 . . 1 . 1 1 1 1 Highest-Rated Group 156 | . . . . 40 24 24 . . 41 . 49 113 113 156 Highest-Rated Ally 156 | . . . . 16 16 16 . . 41 . 49 113 113 156 Total Orders . | . . . . . . . . . . . . . . . Ally Attacks 58 | . . . . 9 1 12 . . 3 . 10 3 3 17 Total Damage 1995 | . . . . 79 12 153 . . 580 . 298 167 140 566 Kills 18 | . . . . 3 . 4 . . 4 . 5 . . 2 Allies Corrupted . | . . . . . . . . . . . . . . . Allies Melted . | . . . . . . . . . . . . . . . Intel | -11 -10 -10 -10 -9 -8 -8 -8 -7 -6 -5 -5 -5 -4 -4 ------- Run | Scr Mat Min Exi Min Mat Gar Mat Fac Fac Fac Upp Upp Fac Ext Robot Analysis Total 2 | . 1 . . . . . . . . . . . . 1 Derelict Logs Recovered 2 | . . . . 2 . . . . . . . . . . Drone Launches . | . . . . . . . . . . . . . . . Drone Recoveries . | . . . . . . . . . . . . . . . Exploration | -11 -10 -10 -10 -9 -8 -8 -8 -7 -6 -5 -5 -5 -4 -4 ------------- Run | Scr Mat Min Exi Min Mat Gar Mat Fac Fac Fac Upp Upp Fac Ext Turns Passed 18664 | 107 332 185 881 1043 393 855 1334 3111 2839 619 1569 87 3764 1545 Spaces Moved 8016 | 81 219 114 516 536 194 372 371 1139 1337 335 744 14 1273 771 Core 67 | 32 . . . . . . . . . . 2 4 29 . Treads 4977 | . . . 514 536 194 372 371 1139 1047 . 53 . 273 478 Legs 842 | 49 219 114 2 . . . . . . . . . 458 . Wheels 878 | . . . . . . . . . . . 585 . . 293 Hover 1252 | . . . . . . . . . 290 335 104 10 513 . Flight . | . . . . . . . . . . . . . . . Fastest Speed 50 | 50 120 150 150 180 180 182 182 162 108 100 120 290 108 106 Average Speed 171 | 113 141 150 166 180 188 182 182 182 160 132 182 557 192 142 Slowest Speed 1600 | 150 150 150 180 180 200 183 182 185 240 220 1550 1300 1600 220 Overloaded Moves . | . . . . . . . . . . . . . . . Propulsion Burnouts . | . . . . . . . . . . . . . . . Robots Hopped . | . . . . . . . . . . . . . . . Cave-ins Triggered 4 | . . . . . . . . . . 1 . . 3 . Exploration Rate (%) 33 | 5 28 17 83 78 16 52 27 18 29 8 67 3 17 47 Regions Visited 14 Branch Regions 6 Pre-discovered Areas . | . . . . . . . . . . . . . . . Known Exits Taken 4 | . . . . 1 1 . . 1 . . . . 1 . Unknown Exits Taken 9 | 1 1 1 1 . . . 1 . 1 1 1 1 . . Scrap Searched 3 | . . 1 . . . . . . . . 2 . . . Spaces Dug 100 | . . . . . . 4 16 9 12 6 . . 53 . Terrain Destroyed 463 | . . . . . . 21 24 14 22 44 25 . 245 68 Melee 55 | . . . . . . 4 10 9 12 2 . . 18 . Projectile 141 | . . . . . . 2 14 5 10 4 25 . 59 22 AOE 267 | . . . . . . 15 . . . 38 . . 168 46 Terrain Rammed . | . . . . . . . . . . . . . . . Walls Destroyed . | . . . . . . . . . . . . . . . Machines Disabled . | . . . . . . . . . . . . . . . Actions | -11 -10 -10 -10 -9 -8 -8 -8 -7 -6 -5 -5 -5 -4 -4 --------- Run | Scr Mat Min Exi Min Mat Gar Mat Fac Fac Fac Upp Upp Fac Ext Total 12136 | 96 231 128 538 617 226 476 971 2055 1895 498 944 26 2321 1114 Wait 2948 | . 1 14 . 69 . 30 551 761 392 124 144 5 642 215 Move 8001 | 80 218 113 515 535 193 370 370 1138 1336 334 743 13 1272 771 Hop . | . . . . . . . . . . . . . . . Pick Up 243 | 10 5 1 10 8 14 8 7 19 26 12 15 . 85 23 Fast Attach 1 | . . . . . . . . . . . . . 1 . Attach 151 | 6 1 . 3 1 6 1 . 7 12 8 21 4 62 19 Detach 14 | . . . . 1 . . . . 3 . 4 . 6 . Swap 110 | . 1 . 5 . 3 9 3 18 24 1 4 1 38 3 Drop 115 | . . . 5 3 10 6 7 16 18 6 2 . 39 3 Fire 371 | . 5 . . . . 30 23 61 55 11 11 3 129 43 Melee 128 | . . . . . . 8 10 35 27 2 . . 37 9 Ram 8 | . . . . . . . . . . . . . 1 7 Kick . | . . . . . . . . . . . . . . . Crush 12 | . . . . . . . . . . . . . 9 3 Escape Stasis 34 | . . . . . . 14 . . 2 . . . . 18 Rewire . | . . . . . . . . . . . . . . . Trap . | . . . . . . . . . . . . . . . Miscellaneous . | . . . . . . . . . . . . . . . Route ------- -11/Scrapyard -10/Materials -10/Mines (discovered 2 exits: [*Mat] / *Exi) -10/Exiles -9/Mines -8/Materials (discovered 2 exits: Sto / Gar) -8/Garrison (discovered 2 exits: *Mat x2) -8/Materials -7/Factory -6/Factory (discovered 3 exits: *Fac / Low x2) -5/Factory -5/Upper Caves -5/Upper Caves (discovered 2 exits: *Fac x2) -4/Factory (discovered 5 exits: Upp x2 / *Ext x2 / Arm) -4/Extension History --------- Turn | Location | Event 55 | -11/Scrapyard | Discovered new exit (range 16) 108 | -11/Scrapyard | Entered Materials 125 | -10/Materials | Discovered new exit (range 16) 305 | -10/Materials | Build established: Mutant 440 | -10/Materials | Entered Mines 454 | -10/Mines | Discovered new exit (range 11) 617 | -10/Mines | Deemed a non-threat by the Exiles lab entrance 617 | -10/Mines | Discovered new exit (range 5) 625 | -10/Mines | Entered Exiles 665 | -10/Exiles | Met 8R-AWN 692 | -10/Exiles | Met EX-HEX 816 | -10/Exiles | Met EX-DEC 846 | -10/Exiles | Visited The Gauntlet 1028 | -10/Exiles | Met EX-BIN 1052 | -10/Exiles | Aligned with FarCom system 1053 | -10/Exiles | Given EX-Vault access code 1096 | -10/Exiles | Opened EX-Vault 1109 | -10/Exiles | Found Prototype Device 1110 | -10/Exiles | Identified Skeleton Box 1182 | -10/Exiles | Found Prototype Energy Cannon 1186 | -10/Exiles | Identified YOLO Cannon 1192 | -10/Exiles | Found Prototype Ballistic Gun 1194 | -10/Exiles | Identified AWS/Gauss 1251 | -10/Exiles | Warned to stay clear of 0b10 Research branches 1479 | -10/Exiles | Discovered new exit (range 14) 1506 | -10/Exiles | Left Exiles lab with AWS/Gauss 1506 | -10/Exiles | Entered Mines 1562 | -9/Mines | Learned location of 1 exit from Materials 1734 | -9/Mines | Build established: Hauler-Mutant 1947 | -9/Mines | Met a Derelict who couldn't figure out how to use a Trap Extractor 2107 | -9/Mines | Assisted by bots powering up and referring to "LRC-V3" 2166 | -9/Mines | Identified exit to Materials 2549 | -9/Mines | Entered Materials 2549 | -8/Materials | Accompanied by 2 allies 2549 | -8/Materials | Evolved 4 slots: Propulsion x2, Utility x2 2550 | -8/Materials | Identified exit to Storage 2919 | -8/Materials | Identified exit to Garrison 2942 | -8/Materials | Entered Garrison 2942 | -8/Garrison | Accompanied by 2 allies 3020 | -8/Garrison | Triggered checkpoint 3073 | -8/Garrison | Garrison Relay disabled 3191 | -8/Garrison | Triggered checkpoint 3292 | -8/Garrison | Discovered new exit (range 9) 3358 | -8/Garrison | Triggered checkpoint 3441 | -8/Garrison | Garrison Relay disabled 3530 | -8/Garrison | Triggered checkpoint 3662 | -8/Garrison | Triggered checkpoint 3751 | -8/Garrison | Discovered new exit (range 14) 3788 | -8/Garrison | Installed Relay Interface Framework 3797 | -8/Garrison | Entered Materials 4992 | -8/Materials | Discovered new exit (range 5) 5131 | -8/Materials | Entered Factory 5131 | -7/Factory | Evolved 2 slots: Utility x2 5474 | -7/Factory | Build established: Bothacker-Mutant 6546 | -7/Factory | Repaired Imp. Medium Armor Plating 7009 | -7/Factory | Build established: Bothacker-Assassin 7943 | -7/Factory | Discovered new exit (range 16) 8055 | -7/Factory | Identified exit to Factory 8242 | -7/Factory | Entered another Factory area 8242 | -6/Factory | Evolved 2 slots: Utility x2 8397 | -6/Factory | Build established: Bothacker-Skirmisher 8459 | -6/Factory | Fabricated Antigrav System? 9236 | -6/Factory | Build established: Bothacker-Assassin 9459 | -6/Factory | Identified exit to Lower Caves 10660 | -6/Factory | Lost 4 parts (3n1w) 10962 | -6/Factory | Discovered new exit (range 15) 11081 | -6/Factory | Entered another Factory area 11081 | -5/Factory | Evolved 2 slots: Propulsion x2 11228 | -5/Factory | Crushed by falling debris 11259 | -5/Factory | Lost 3 parts (2u1w) 11440 | -5/Factory | Discovered new exit (range 13) 11700 | -5/Factory | Entered Upper Caves 11730 | -5/Upper Caves | Lost 12 parts (1p7n2u2w) 11948 | -5/Upper Caves | Build established: Bothacker-Mutant 12041 | -5/Upper Caves | Attracted the attention of an 0b10 base 12078 | -5/Upper Caves | Destroyed 7 combat bots 12094 | -5/Upper Caves | Learned location of 2 exits from Lower Caves 12831 | -5/Upper Caves | Attracted the attention of an 0b10 checkpoint 13040 | -5/Upper Caves | Lost 5 parts (2n1u2w) 13163 | -5/Upper Caves | Discovered new exit (range 14) 13269 | -5/Upper Caves | Entered another Upper Caves area 13284 | -5/Upper Caves | Discovered new exit (range 14) 13318 | -5/Upper Caves | Core integrity fell below 50% 13327 | -5/Upper Caves | Build established: Hauler-Mutant 13328 | -5/Upper Caves | CL-ANK showed up to help 13330 | -5/Upper Caves | CL-ANK revealed a hidden path 13335 | -5/Upper Caves | Core integrity fell below 20% 13356 | -5/Upper Caves | Entered Factory 13356 | -4/Factory | Accompanied by 1 ally (CL-ANK) 13356 | -4/Factory | Evolved 2 slots: Power x1, Utility x1 13381 | -4/Factory | Lost 11 parts (2p1n4u4w) 13853 | -4/Factory | Found Prototype Impact Weapon 13854 | -4/Factory | Identified CL-ANK's Mallet 14319 | -4/Factory | Build established: Scavenger-Mutant 14823 | -4/Factory | Identified exit to Upper Caves 14823 | -4/Factory | Identified exit to Extension 14823 | -4/Factory | Identified exit to Armory 15372 | -4/Factory | Found Prototype Hackware 15599 | -4/Factory | Crushed by falling debris 15599 | -4/Factory | System corruption reached 10% 15657 | -4/Factory | Lost 6 parts (1p3n2u) 15783 | -4/Factory | Identified Exp. Hacking Suite 16374 | -4/Factory | Crushed by falling debris 16666 | -4/Factory | Found Prototype Processor 16667 | -4/Factory | Identified Exp. Signal Interpreter 16680 | -4/Factory | Found Exp. Signal Interpreter 16882 | -4/Factory | First assault squad dispatched 16999 | -4/Factory | Lost 4 parts (1p3u) 17016 | -4/Factory | Core integrity fell below 50% 17021 | -4/Factory | Crushed by falling debris 17052 | -4/Factory | Lost 3 parts (1p1n1w) 17120 | -4/Factory | Entered Extension 17130 | -4/Extension | Lost 4 parts (2n2w) 17255 | -4/Extension | Build established: Hacker-Mutant 17646 | -4/Extension | Spotted B-86 Titan 17670 | -4/Extension | Disrupted transfer network 17681 | -4/Extension | Destroyed B-86 Titan 17705 | -4/Extension | Lost 4 parts (2n1u1w) 17958 | -4/Extension | Build established: Scavenger-Skirmisher 18299 | -4/Extension | Rescued a captive Derelict 18409 | -4/Extension | Rescued a captive Derelict 18478 | -4/Extension | Lost 3 parts (2n1u) 18485 | -4/Extension | Build established: Scavenger-Mutant 18496 | -4/Extension | Energy Cycler disabled 18498 | -4/Extension | Rescued a captive Derelict 18553 | -4/Extension | Rescued A7 18584 | -4/Extension | Spotted B-86 Titan 18623 | -4/Extension | Core integrity fell below 20% 18665 | -4/Extension | Destroyed by G-67 Veteran with Electrolaser Last Messages --------------- glitched. 18648_ System corrupted: Hardcell Cannon targeting data glitched. 18648_ G-67 Veteran knocked back. 18651_ System corrupted: Hardcell Cannon targeting data glitched. 18651_ G-67 Veteran knocked back. 18655_ Slammed into G-67 Veteran. 18657_ U-05 Engineer builds a Wall. 18659_ System corrupted: Heat flow error (+240). 18659_ Magnetic Acceleration Cannon destroyed. 18659_ Hardcell Cannon destroyed. 18659_ Slammed into G-67 Veteran. 18659_ Destabilizing: System interference. 18659_ Imp. Target Analyzer temporarily disabled. 18659_ Imp. Heat Sink temporarily disabled. 18659_ Terrain Scan Processor temporarily disabled. 18660_ Slammed into G-67 Veteran. 18660_ Destabilizing: System corrupted (+1). 18662_ Slammed into U-05 Engineer. 18663_ Destabilizing: System corrupted (+1). 18664_ Acquired 81 matter. Map ----- +----------------------------------------------------+ | #?##??#?##??##############???#??????#????????????? | | ?#?##?#?#############?#?#####????????????????????? | | #???##?#??#######?###?###????##?#????????????????? | | #####??#########?############?#?????#????????????? | | ##??###### ##########"""""#####?#??????????????? | | #?#### ##?##????????????? | | ?#?#?###T# ###### #????????????????? | | ##############?#??# #????????????????? | | ##??#????########## ! #??#?????????????? | | ###??##?#?## ] # ! [% #??#?????????????? | | #####??##### = = # ! ! = ####?????????????? | | #??#?##?##?# /% [% gg #?????????????? | | #??##?#?#### ###"### #"###### #?????????????? | | #??#??###?## = ?## # # ##?# #?????????????? | | ##?######### ####### ######## #?#???????????? | | ##### #######?#####?# #?###### #??#??????????? | | ############### ###?#?## #??#??????????? | | #?#?#?## #?#???????????? | | ^ ##??##?# #?#???????????? | | ##### ##?#???# #??#??????????? | | #???#####################u###????# ##?#??????????? | | ???#???###?????##?###?### # ###??# #?????????????? | | #????????#?#???#??????### ####g##????????????? | | ##??#????#???#???##???###g######## #?#?#?????????? | | ??##?#?#?#?###?#?###???#g!#??##?##g#?#?#?????????? | | #######??###???#?########@########Y##????????????? | | ##?????##?###?##?###??#?# ! #??#??????????? | | ??###?#####?#?###??#?####!= R #????#????????? | | #?#?##?#??##?###?##?#?#?# u = ##??#?????????? | | ##?#?######??#####?###?## u%%!##??##????????? | | ##??#?###?#????###?#?##?########## ##????????????? | | #?#?###?????#?##?##??#?#####?#?###!##? ??????????? | | ##?###??##########??#####??#???#""p%" ??????????? | | ##?#####????#####?###?????###### "%%p% ?????????? | | ?#??###?##?##??##?##?###???###?#BB=!%* ????????? | | #?###?##????#?#?####?###########BB= $ ??????? | | ######################"# ####### %! ????? | | ??? | | %" "?? | | " "??? | | ??? | | % ???? | | ################################ ???? | | #?##?#?#??#?#?###????#### ## # ?????? | | ?######?#??###???######?## # ### ???????? | | ##?#???###?##?#?#???##########?# ???????? | | ?#?????##??#?#?###?#?#####?##??? ?????????? | | #?###?#?##???#?#?##?#??#???#???????##T#"?????????? | | ??##??##?######?########?#?????##????????????????? | | #?#?#??#???????##??###??##?#?????????????????????? | +----------------------------------------------------+ Best States ------------- Heat Dissipation 74 Energy Generation 38 Energy Capacity 540 Matter Stores 300 Matter Capacity 300 Sight Range 22 Terrain Scan Range 14 Terrain Scan Density 210 Jamming Range 8 Armor Coverage 900 Utility Shielding 66 Phase Shifting 10 Evasion (%) 50 Target Analysis 6 Recoil Reduction 6 Matter Filtering 30 Offensive Hacking 38 Relay Coupler Types 21 Relay Coupler Value 1 Item Schematics ----------------- Imp. Medium Armor Plating | -8/Materials | Scanalyzed Hvy. EM Shotgun | -8/Materials | Scanalyzed Stasis Canceller | -5/Factory | Hacked Adv. Armor Integrity Analyzer | -4/Extension | Hacked Robot Schematics ------------------ L-61 Swordsman | -4/Extension | Hacked Fabricated ------------ Antigrav System | x2 | -6/Factory | Preloaded Alien Tech Used ----------------- None Achievements -------------- Close Call Prison Break Safety First Total Silence Challenges ------------ None Game ------ Seed TeslaBeamLoader Manual? 0 Play Time 03:58:56 Cumulative 30.2 hours Start 2021.05.12 @ 04:33:50 End 2021.05.12 @ 23:45:52 Sessions 3 Manual Loads 0 Difficulty Rogue Special Mode None Game No. 16 Rogue 16 Adventurer 0 Explorer 0 Win Type - Total 0 Types 0/0/0/0/0/0/0/0/0 Lore% 23 Gallery% 31 Achievement% 21 Wizard Run 0 Options --------- ASCII 0 Keyboard 0 Movement Mouse Keybinds 0 Fullscreen 1 Font 18/SmallcapsGlow Map View 76x50 Tactical HUD 1 Map Filters NONE Filters NONE Steam 1 RUN: 44b83b27-2b4e-4977-b083-918a836c8599